fUSD/lending_fUSD_20260529
["ID","MTS","AMOUNT","RATE_DAILY","PERIOD"]
[423268475,1780008632000,-596.1126365,0.00013757,7]
[423268478,1780008632000,-150.0,0.0001378,2]
[423268477,1780008632000,-150.0,0.00013763,2]
[423268488,1780008632000,-160.0,0.00013821,2]
[423268479,1780008632000,-150.0,0.00013782,2]
[423268480,1780008632000,-150.0,0.00013787,2]
[423268483,1780008632000,-150.0,0.00013797,2]
[423268492,1780008632000,-209.03147293,0.00013827,2]
[423268494,1780008632000,-150.0,0.00013829,2]
[423268498,1780008632000,-150.0,0.00013831,2]
[423268470,1780008632000,-150.0,0.00013728,2]
[423268501,1780008632000,-197.47646253,0.00013841,2]
[423268513,1780008632000,-300.0,0.0001387,2]
[423268512,1780008632000,-150.0,0.0001387,2]
[423268517,1780008632000,-500.0,0.0001387,2]
[423268508,1780008632000,-150.0,0.0001385,2]
[423268519,1780008632000,-223.46924972,0.0001387,2]
[423268515,1780008632000,-1200.0,0.0001387,2]
[423268506,1780008632000,-150.0,0.00013848,2]
[423268511,1780008632000,-150.0,0.00013865,2]
[423268510,1780008632000,-150.0,0.0001385,2]
[423268521,1780008632000,-500.0,0.0001387,2]
[423268523,1780008632000,-500.0,0.0001387,2]
[423268525,1780008632000,-150.0,0.00013882,2]
[423268527,1780008632000,-1933.4561316,0.00013892,2]
[423268504,1780008632000,-150.0,0.00013842,2]
[423268467,1780008632000,-54.06869205,0.00013721,2]
[423268455,1780008632000,-150.0,0.0001366,2]
[423268469,1780008632000,-95.93130795,0.00013721,2]
[423268441,1780008632000,-471.06,0.00013493,2]
[423268443,1780008632000,-3215.51,0.00013493,2]
[423268446,1780008632000,-1227.91,0.00013493,2]
[423268442,1780008632000,-593.4,0.00013493,2]
[423268447,1780008632000,-152.0,0.00013599,2]
[423268444,1780008632000,-676.23485758,0.00013493,2]
[423268445,1780008632000,-768.40514242,0.00013493,2]
[423268449,1780008632000,-150.0,0.0001366,2]
[423268448,1780008632000,-152.0,0.00013599,2]
[423268451,1780008632000,-150.0,0.0001366,2]
[423268450,1780008632000,-222.85803994,0.0001366,2]
[423268452,1780008632000,-150.0,0.0001366,2]
[423268458,1780008632000,-67.01212443,0.0001366,2]
[423268528,1780008632000,-694.9,0.00013894,2]
[423268456,1780008632000,-150.0,0.0001366,2]
[423268459,1780008632000,-82.98787557,0.0001366,2]
[423268454,1780008632000,-150.0,0.0001366,2]
[423268453,1780008632000,-253.74994461,0.0001366,2]
[423268460,1780008632000,-150.0,0.0001366,2]
[423268462,1780008632000,-150.0,0.00013677,2]
[423268472,1780008632000,-150.0,0.00013746,2]
[423268464,1780008632000,-166.66,0.00013699,2]
[423268473,1780008632000,-150.0,0.00013755,2]
[423268474,1780008632000,-150.0,0.00013757,7]
[423268463,1780008632000,-150.0,0.00013694,2]
[423268461,1780008632000,-150.0,0.0001366,2]
[423268465,1780008632000,-150.0,0.00013711,2]
[423268471,1780008632000,-150.0,0.00013745,2]
[423268537,1780008632000,-150.0,0.00013945,2]
[423268457,1780008632000,-272.82919498,0.0001366,2]
[423268538,1780008632000,-512.0,0.00013947,2]
[423268563,1780008632000,-1633.0,0.00014086,2]
[423268562,1780008632000,-150.0,0.00014085,2]
[423268566,1780008632000,-717.0,0.00014114,2]
[423268565,1780008632000,-150.0,0.00014104,2]
[423268567,1780008632000,-150.0,0.00014121,2]
[423268577,1780008632000,-150.0,0.00014166,2]
[423268576,1780008632000,-150.0,0.00014166,2]
[423268568,1780008632000,-150.0,0.00014135,2]
[423268573,1780008632000,-150.0,0.00014155,2]
[423268570,1780008632000,-1066.0,0.00014141,2]
[423268571,1780008632000,-500.0,0.00014144,2]
[423268572,1780008632000,-150.0,0.00014146,2]
[423268569,1780008632000,-150.0,0.00014138,2]
[423268558,1780008632000,-150.0,0.00014053,2]
[423268575,1780008632000,-323.5908,0.00014162,7]
[423268578,1780008632000,-150.0,0.00014166,2]
[423268585,1780008632000,-150.0,0.00014206,2]
[423268579,1780008632000,-274.0,0.00014169,2]
[423268580,1780008632000,-150.0,0.00014172,2]
[423268581,1780008632000,-637.2,0.00014179,2]
[423268584,1780008632000,-1836.0,0.00014197,2]
[423268587,1780008632000,-150.0,0.00014223,2]
[423268582,1780008632000,-1569.24,0.00014181,2]
[423268589,1780008632000,-150.0,0.00014229,2]
[423268590,1780008632000,-150.0,0.00014229,2]
[423268583,1780008632000,-150.0,0.00014189,2]
[423268586,1780008632000,-150.0,0.00014207,2]
[423268526,1780008632000,-599.0,0.00013892,2]
[423268574,1780008632000,-596.1126365,0.00014162,7]
[423268559,1780008632000,-657.0,0.00014058,2]
[423268588,1780008632000,-302.0,0.00014224,2]
[423268554,1780008632000,-150.0,0.0001404,2]
[423268553,1780008632000,-150.0,0.0001404,2]
[423268531,1780008632000,-150.0,0.00013903,2]
[423268530,1780008632000,-150.0,0.00013899,2]
[423268529,1780008632000,-669.51,0.00013894,2]
[423268536,1780008632000,-150.0,0.00013933,2]
[423268532,1780008632000,-150.0,0.00013913,2]
[423268535,1780008632000,-193.0,0.00013919,2]
[423268534,1780008632000,-150.0,0.00013916,2]
[423268533,1780008632000,-150.0,0.00013913,2]
[423268550,1780008632000,-150.0,0.00014025,2]
[423268540,1780008632000,-150.0,0.00013964,2]
[423268541,1780008632000,-150.0,0.00013967,2]
[423268539,1780008632000,-150.0,0.0001395,2]
[423268544,1780008632000,-150.0,0.00013984,2]
[423268551,1780008632000,-1166.0,0.0001403,2]
[423268543,1780008632000,-270.0,0.00013975,2]
[423268556,1780008632000,-150.0,0.0001404,2]
[423268545,1780008632000,-13677.87113283,0.0001399,2]
[423268560,1780008632000,-150.0,0.0001407,2]
[423268557,1780008632000,-150.0,0.0001404,2]
[423268561,1780008632000,-150.0,0.00014082,2]
[423268552,1780008632000,-150.0,0.00014035,2]
[423268555,1780008632000,-150.0,0.0001404,2]
[423268548,1780008632000,-1435.0,0.00014003,2]
[423268564,1780008632000,-150.0,0.00014087,2]
[423268547,1780008632000,-150.0,0.00014001,2]
[423268546,1780008632000,-150.0,0.00013998,2]
[423268542,1780008632000,-166.66,0.00013974,2]
[423268549,1780008632000,-150.0,0.00014018,2]
[423268630,1780008633000,-150.0,0.00014419,2]
[423268638,1780008633000,-152.0,0.00014426,7]
[423268634,1780008633000,-150.0,0.00014419,2]
[423268629,1780008633000,-1665.0,0.00014419,2]
[423268626,1780008633000,-152.0,0.00014395,7]
[423268621,1780008633000,-152.0,0.0001438,7]
[423268622,1780008633000,-150.0,0.00014389,2]
[423268625,1780008633000,-152.0,0.00014395,7]
[423268623,1780008633000,-460.0,0.00014391,2]
[423268631,1780008633000,-150.0,0.00014419,2]
[423268624,1780008633000,-150.0,0.00014394,2]
[423268635,1780008633000,-150.0,0.00014419,2]
[423268649,1780008633000,-78903.7177626,0.00014472,2]
[423268632,1780008633000,-150.0,0.00014419,2]
[423268640,1780008633000,-150.0,0.00014445,2]
[423268636,1780008633000,-152.0,0.00014426,7]
[423268637,1780008633000,-152.0,0.00014426,7]
[423268633,1780008633000,-150.0,0.00014419,2]
[423268642,1780008633000,-495.0,0.00014446,2]
[423268641,1780008633000,-152.0,0.00014445,2]
[423268645,1780008633000,-152.0,0.00014454,7]
[423268643,1780008633000,-150.0,0.0001445,2]
[423268652,1780008633000,-1095.0,0.00014474,2]
[423268644,1780008633000,-152.0,0.00014454,7]
[423268646,1780008633000,-152.0,0.00014454,7]
[423268627,1780008633000,-150.0,0.00014411,2]
[423268628,1780008633000,-152.0,0.00014411,7]
[423268617,1780008633000,-1277.3770898,0.00014372,2]
[423268607,1780008633000,-150.0,0.00014335,2]
[423268619,1780008633000,-152.0,0.0001438,7]
[423268651,1780008633000,-3775.2750711,0.00014472,2]
[423268591,1780008633000,-150.0,0.0001424,2]
[423268602,1780008633000,-610.0,0.00014308,2]
[423268592,1780008633000,-166.66,0.00014248,2]
[423268593,1780008633000,-150.0,0.00014251,2]
[423268594,1780008633000,-1849.0,0.00014252,2]
[423268595,1780008633000,-967.344,0.00014256,2]
[423268600,1780008633000,-150.0,0.00014291,2]
[423268599,1780008633000,-1848.0,0.0001428,2]
[423268598,1780008633000,-150.0,0.00014274,2]
[423268596,1780008633000,-150.0,0.00014257,2]
[423268601,1780008633000,-150.0,0.00014293,2]
[423268597,1780008633000,-150.0,0.00014267,2]
[423268603,1780008633000,-150.0,0.00014308,2]
[423268604,1780008633000,-150.0,0.00014324,2]
[423268605,1780008633000,-150.0,0.00014325,2]
[423268606,1780008633000,-150.0,0.00014328,2]
[423268614,1780008633000,-27605.56,0.00014356,2]
[423268609,1780008633000,-150.0,0.00014342,2]
[423268610,1780008633000,-2000.0,0.00014356,2]
[423268608,1780008633000,-642.0,0.00014335,2]
[423268611,1780008633000,-225.49,0.00014356,2]
[423268613,1780008633000,-200.0,0.00014356,2]
[423268612,1780008633000,-6620.22,0.00014356,2]
[423268615,1780008633000,-150.0,0.00014359,2]
[423268616,1780008633000,-1903.0,0.00014363,2]
[423268618,1780008633000,-150.0,0.00014377,2]
[423268620,1780008633000,-152.0,0.0001438,7]
[423268647,1780008633000,-152.0,0.00014454,7]
[423268639,1780008633000,-150.0,0.00014428,2]
[423268650,1780008633000,-3530.2633599,0.00014472,2]
[423268687,1780008633000,-151.0,0.00014609,2]
[423268688,1780008633000,-150.0,0.00014615,2]
[423268686,1780008633000,-150.0,0.00014609,2]
[423268683,1780008633000,-150.0,0.00014588,2]
[423268690,1780008633000,-500.0,0.00014626,2]
[423268693,1780008633000,-500.0,0.00014626,2]
[423268700,1780008633000,-500.0,0.00014626,2]
[423268689,1780008633000,-500.0,0.00014626,2]
[423268691,1780008633000,-500.0,0.00014626,2]
[423268694,1780008633000,-500.0,0.00014626,2]
[423268696,1780008633000,-500.0,0.00014626,2]
[423268695,1780008633000,-500.0,0.00014626,2]
[423268698,1780008633000,-500.0,0.00014626,2]
[423268692,1780008633000,-500.0,0.00014626,2]
[423268697,1780008633000,-500.0,0.00014626,2]
[423268699,1780008633000,-500.0,0.00014626,2]
[423268702,1780008633000,-500.0,0.00014626,2]
[423268703,1780008633000,-500.0,0.00014626,2]
[423268710,1780008633000,-211.84695605,0.00014653,2]
[423268706,1780008633000,-284.96742646,0.00014626,2]
[423268708,1780008633000,-150.0,0.00014632,2]
[423268704,1780008633000,-500.0,0.00014626,2]
[423268709,1780008633000,-150.0,0.00014649,2]
[423268707,1780008633000,-150.0,0.00014632,2]
[423268705,1780008633000,-500.0,0.00014626,2]
[423268711,1780008633000,-150.0,0.00014666,2]
[423268648,1780008633000,-150.0,0.00014462,2]
[423268685,1780008633000,-150.0,0.00014609,2]
[423268679,1780008633000,-596.1126365,0.00014567,7]
[423268701,1780008633000,-500.0,0.00014626,2]
[423268681,1780008633000,-150.0,0.00014571,2]
[423268684,1780008633000,-150.0,0.00014598,2]
[423268655,1780008633000,-1469.0,0.00014502,2]
[423268657,1780008633000,-150.0,0.0001451,2]
[423268656,1780008633000,-150.0,0.00014504,2]
[423268664,1780008633000,-150.0,0.00014547,2]
[423268658,1780008633000,-150.0,0.00014513,2]
[423268653,1780008633000,-150.0,0.00014479,2]
[423268663,1780008633000,-150.0,0.00014546,2]
[423268659,1780008633000,-150.0,0.00014514,2]
[423268665,1780008633000,-151.0,0.00014564,2]
[423268660,1780008633000,-166.66,0.00014523,2]
[423268661,1780008633000,-991.0,0.00014529,2]
[423268662,1780008633000,-150.0,0.0001453,2]
[423268667,1780008633000,-151.0,0.00014564,2]
[423268654,1780008633000,-150.0,0.00014496,2]
[423268666,1780008633000,-151.0,0.00014564,2]
[423268682,1780008633000,-150.0,0.00014581,2]
[423268677,1780008633000,-150.0,0.00014567,7]
[423268680,1780008633000,-323.5908,0.00014567,7]
[423268678,1780008633000,-151.47665671,0.00014567,7]
[423268671,1780008633000,-151.0,0.00014564,2]
[423268670,1780008633000,-151.0,0.00014564,2]
[423268676,1780008633000,-150.0,0.00014564,2]
[423268673,1780008633000,-151.0,0.00014564,2]
[423268672,1780008633000,-151.0,0.00014564,2]
[423268674,1780008633000,-151.0,0.00014564,2]
[423268668,1780008633000,-151.0,0.00014564,2]
[423268669,1780008633000,-151.0,0.00014564,2]
[423268675,1780008633000,-151.0,0.00014564,2]
[423268738,1780008634000,-500.0,0.0001473,2]
[423268736,1780008634000,-500.0,0.0001473,2]
[423268734,1780008634000,-417.049735,0.0001473,2]
[423268732,1780008634000,-500.0,0.0001473,2]
[423268733,1780008634000,-500.0,0.0001473,2]
[423268735,1780008634000,-500.0,0.0001473,2]
[423268746,1780008634000,-151.0,0.0001473,2]
[423268742,1780008634000,-322.594254,0.0001473,2]
[423268737,1780008634000,-500.0,0.0001473,2]
[423268748,1780008634000,-211.84695602,0.00014735,2]
[423268743,1780008634000,-417.049735,0.0001473,2]
[423268740,1780008634000,-417.049735,0.0001473,2]
[423268741,1780008634000,-500.0,0.0001473,2]
[423268739,1780008634000,-500.0,0.0001473,2]
[423268745,1780008634000,-151.0,0.0001473,2]
[423268747,1780008634000,-150.0,0.00014735,2]
[423268729,1780008634000,-500.0,0.0001473,2]
[423268725,1780008634000,-12362.7449848,0.0001473,2]
[423268731,1780008634000,-500.0,0.0001473,2]
[423268744,1780008634000,-417.049735,0.0001473,2]
[423268712,1780008634000,-150.0,0.00014672,2]
[423268714,1780008634000,-150.0,0.00014672,2]
[423268713,1780008634000,-150.0,0.00014672,2]
[423268724,1780008634000,-317.6573767,0.0001473,2]
[423268716,1780008634000,-150.0,0.00014684,2]
[423268723,1780008634000,-150.0,0.00014718,2]
[423268720,1780008634000,-150.0,0.00014701,2]
[423268717,1780008634000,-150.0,0.00014692,2]
[423268722,1780008634000,-211.84695602,0.00014708,2]
[423268721,1780008634000,-150.0,0.00014704,2]
[423268715,1780008634000,-211.84695602,0.0001468,2]
[423268718,1780008634000,-2500.0,0.000147,2]
[423268719,1780008634000,-3486.10273273,0.000147,2]
[423268727,1780008634000,-500.0,0.0001473,2]
[423268728,1780008634000,-500.0,0.0001473,2]
[423268730,1780008634000,-500.0,0.0001473,2]
[423268726,1780008634000,-17100.644305,0.0001473,2]
[423268749,1780008634000,-150.0,0.00014752,2]
[423268773,1780008634000,-500.0,0.00014799,2]
[423268760,1780008634000,-150.0,0.00014799,2]
[423268772,1780008634000,-500.0,0.00014799,2]
[423268777,1780008634000,-500.0,0.00014799,2]
[423268775,1780008634000,-500.0,0.00014799,2]
[423268778,1780008634000,-500.0,0.00014799,2]
[423268780,1780008634000,-500.0,0.00014799,2]
[423268783,1780008634000,-604.32063976,0.00014799,2]
[423268779,1780008634000,-500.0,0.00014799,2]
[423268771,1780008634000,-861.71,0.00014799,2]
[423268782,1780008634000,-500.0,0.00014799,2]
[423268781,1780008634000,-522.90827503,0.00014799,2]
[423268784,1780008634000,-1087.67016759,0.00014799,5]
[423268786,1780008634000,-8945.81074078,0.000148,2]
[423268776,1780008634000,-500.0,0.00014799,2]
[423268787,1780008634000,-49734.82647848,0.000148,2]
[423268789,1780008634000,-65435.37768149,0.000148,2]
[423268788,1780008634000,-4788.71586271,0.000148,2]
[423268751,1780008634000,-150.0,0.00014756,2]
[423268762,1780008634000,-150.0,0.00014799,2]
[423268785,1780008634000,-42445.5038,0.000148,2]
[423268770,1780008634000,-861.71,0.00014799,2]
[423268750,1780008634000,-150.0,0.00014753,2]
[423268761,1780008634000,-150.0,0.00014799,2]
[423268752,1780008634000,-211.84695602,0.00014763,2]
[423268758,1780008634000,-150.0,0.00014799,2]
[423268757,1780008634000,-166.66,0.00014798,2]
[423268754,1780008634000,-150.0,0.00014786,2]
[423268755,1780008634000,-211.84695602,0.0001479,2]
[423268769,1780008634000,-861.71,0.00014799,2]
[423268753,1780008634000,-150.0,0.00014769,2]
[423268756,1780008634000,-151.0,0.00014797,2]
[423268774,1780008634000,-500.0,0.00014799,2]
[423268763,1780008634000,-500.0,0.00014799,2]
[423268767,1780008634000,-500.0,0.00014799,2]
[423268768,1780008634000,-500.0,0.00014799,2]
[423268765,1780008634000,-500.0,0.00014799,2]
[423268766,1780008634000,-500.0,0.00014799,2]
[423268764,1780008634000,-500.0,0.00014799,2]
[423268759,1780008634000,-150.0,0.00014799,2]
[423268795,1780008638000,-500.0,0.00014799,2]
[423268797,1780008638000,-11.59156142,0.00014799,2]
[423268799,1780008638000,-850.42888477,0.000148,2]
[423268796,1780008638000,-488.40843858,0.00014799,2]
[423268798,1780008638000,-1475.64332248,0.000148,2]
[423268800,1780008638000,-568.97843399,0.000148,2]
[423268794,1780008638000,-151.0,0.0001473,2]
[423268858,1780008641000,-4274.707032,0.000148,2]
[423268855,1780008641000,-4274.707032,0.000148,2]
[423268857,1780008641000,-4274.707032,0.000148,2]
[423268856,1780008641000,-4274.707032,0.000148,2]
[423268853,1780008641000,-4274.707032,0.000148,2]
[423268866,1780008641000,-187.442691,0.000148,2]
[423268865,1780008641000,-151.0,0.000148,2]
[423268864,1780008641000,-417.049735,0.000148,2]
[423268852,1780008641000,-170.297,0.000148,2]
[423268851,1780008641000,-170.297,0.000148,2]
[423268849,1780008641000,-170.297,0.000148,2]
[423268848,1780008641000,-410047.3223953,0.000148,2]
[423268850,1780008641000,-170.297,0.000148,2]
[423268863,1780008641000,-417.049735,0.000148,2]
[423268854,1780008641000,-4274.707032,0.000148,2]
[423268859,1780008641000,-4274.707032,0.000148,2]
[423268861,1780008641000,-417.049735,0.000148,2]
[423268879,1780008641000,-150.0,0.00014875,2]
[423268862,1780008641000,-417.049735,0.000148,2]
[423268882,1780008641000,-151.0,0.00014897,2]
[423268881,1780008641000,-150.0,0.00014893,2]
[423268880,1780008641000,-150.0,0.00014888,2]
[423268878,1780008641000,-211.84695602,0.00014873,2]
[423268874,1780008641000,-211.84695602,0.00014845,2]
[423268876,1780008641000,-150.0,0.00014854,2]
[423268877,1780008641000,-150.0,0.00014871,2]
[423268872,1780008641000,-150.0,0.00014837,2]
[423268875,1780008641000,-437.95768566,0.0001485,2]
[423268871,1780008641000,-150.0,0.0001482,2]
[423268867,1780008641000,-151.0,0.000148,2]
[423268870,1780008641000,-211.84695602,0.00014818,2]
[423268869,1780008641000,-150.0,0.00014814,2]
[423268868,1780008641000,-150.0,0.00014803,2]
[423268860,1780008641000,-4274.707032,0.000148,2]
[423268873,1780008641000,-150.0,0.00014841,2]
[423268918,1780008642000,-150.0,0.00014922,2]
[423268927,1780008642000,-595.54,0.00014985,2]
[423268925,1780008642000,-150.0,0.00014973,2]
[423268923,1780008642000,-150.0,0.00014956,2]
[423268924,1780008642000,-169.0,0.00014959,2]
[423268922,1780008642000,-150.0,0.00014939,2]
[423268926,1780008642000,-304.56,0.00014985,2]
[423268930,1780008642000,-221.89,0.00014985,2]
[423268920,1780008642000,-150.0,0.00014925,2]
[423268929,1780008642000,-224.95,0.00014985,2]
[423268919,1780008642000,-150.0,0.00014925,2]
[423268912,1780008642000,-23440.87924693,0.000149,2]
[423268928,1780008642000,-729.37,0.00014985,2]
[423268921,1780008642000,-150.0,0.00014935,2]
[423268931,1780008642000,-150.0,0.00014988,2]
[423268938,1780008642000,-4274.707032,0.00014995,2]
[423268933,1780008642000,-150.0,0.0001499,2]
[423268942,1780008642000,-151.0,0.00014996,2]
[423268943,1780008642000,-151.0,0.00014996,2]
[423268941,1780008642000,-151.0,0.00014995,2]
[423268937,1780008642000,-4274.707032,0.00014995,2]
[423268935,1780008642000,-5368.664,0.00014995,2]
[423268940,1780008642000,-4274.707032,0.00014995,2]
[423268939,1780008642000,-4274.707032,0.00014995,2]
[423268911,1780008642000,-417.049735,0.000149,2]
[423268934,1780008642000,-255.0,0.00014994,2]
[423268944,1780008642000,-150.0,0.00014996,2]
[423268956,1780008642000,-1092.26222106,0.00014999,5]
[423268946,1780008642000,-151.0,0.00014997,2]
[423268957,1780008642000,-265.51726657,0.00014999,2]
[423268932,1780008642000,-150.0,0.00014988,2]
[423268913,1780008642000,-4055.0879041,0.000149,2]
[423268905,1780008642000,-4274.707032,0.000149,2]
[423268909,1780008642000,-417.049735,0.000149,2]
[423268889,1780008642000,-616.453496,0.000149,2]
[423268890,1780008642000,-4143.4817,0.000149,2]
[423268886,1780008642000,-616.453496,0.000149,2]
[423268883,1780008642000,-5000.0,0.00014899,2]
[423268884,1780008642000,-10000.0,0.000149,2]
[423268885,1780008642000,-702.27747573,0.000149,2]
[423268887,1780008642000,-616.453496,0.000149,2]
[423268888,1780008642000,-616.453496,0.000149,2]
[423268892,1780008642000,-151.0,0.000149,2]
[423268904,1780008642000,-4274.707032,0.000149,2]
[423268902,1780008642000,-211.84695602,0.000149,2]
[423268903,1780008642000,-4274.707032,0.000149,2]
[423268894,1780008642000,-312.8333249,0.000149,2]
[423268895,1780008642000,-572.80396356,0.000149,2]
[423268910,1780008642000,-417.049735,0.000149,2]
[423268896,1780008642000,-625.56886478,0.000149,2]
[423268891,1780008642000,-151.0,0.000149,2]
[423268893,1780008642000,-151.0,0.000149,2]
[423268899,1780008642000,-170.297,0.000149,2]
[423268898,1780008642000,-170.297,0.000149,2]
[423268901,1780008642000,-170.297,0.000149,2]
[423268897,1780008642000,-642.94931385,0.000149,2]
[423268958,1780008642000,-203.003435,0.00014999,2]
[423268914,1780008642000,-458.3598906,0.000149,2]
[423268916,1780008642000,-151.0,0.000149,2]
[423268906,1780008642000,-4274.707032,0.000149,2]
[423268915,1780008642000,-151.0,0.000149,2]
[423268917,1780008642000,-150.0,0.00014905,2]
[423268907,1780008642000,-2591.02178873,0.000149,2]
[423268908,1780008642000,-417.049735,0.000149,2]
[423268900,1780008642000,-170.297,0.000149,2]
[423268948,1780008642000,-500.0,0.00014998,2]
[423268936,1780008642000,-335.664,0.00014995,2]
[423268947,1780008642000,-151.0,0.00014997,2]
[423268979,1780008642000,-500.0,0.00014999,2]
[423268989,1780008642000,-500.0,0.00014999,2]
[423268991,1780008642000,-500.0,0.00014999,2]
[423268992,1780008642000,-500.0,0.00014999,2]
[423268994,1780008642000,-500.0,0.00014999,2]
[423268990,1780008642000,-500.0,0.00014999,2]
[423269001,1780008642000,-500.0,0.00014999,2]
[423269000,1780008642000,-500.0,0.00014999,2]
[423268993,1780008642000,-500.0,0.00014999,2]
[423268945,1780008642000,-170.735945,0.00014997,2]
[423268999,1780008642000,-190.63142176,0.00014999,2]
[423269003,1780008642000,-500.0,0.00014999,2]
[423269002,1780008642000,-500.0,0.00014999,2]
[423268998,1780008642000,-500.0,0.00014999,2]
[423269005,1780008642000,-500.0,0.00014999,2]
[423269016,1780008642000,-500.0,0.00014999,2]
[423269015,1780008642000,-500.0,0.00014999,2]
[423269020,1780008642000,-500.0,0.00014999,2]
[423269019,1780008642000,-500.0,0.00014999,2]
[423269018,1780008642000,-500.0,0.00014999,2]
[423269017,1780008642000,-500.0,0.00014999,2]
[423269011,1780008642000,-500.0,0.00014999,2]
[423269012,1780008642000,-173.45557537,0.00014999,2]
[423268978,1780008642000,-500.0,0.00014999,2]
[423269006,1780008642000,-500.0,0.00014999,2]
[423269014,1780008642000,-520.96525379,0.00014999,2]
[423269013,1780008642000,-500.0,0.00014999,2]
[423269004,1780008642000,-500.0,0.00014999,2]
[423269010,1780008642000,-500.0,0.00014999,2]
[423269009,1780008642000,-500.0,0.00014999,2]
[423269008,1780008642000,-500.0,0.00014999,2]
[423269007,1780008642000,-500.0,0.00014999,2]
[423268981,1780008642000,-500.0,0.00014999,2]
[423268996,1780008642000,-500.0,0.00014999,2]
[423268976,1780008642000,-500.0,0.00014999,2]
[423268951,1780008642000,-861.71,0.00014998,2]
[423268955,1780008642000,-520.83,0.00014998,2]
[423268952,1780008642000,-500.0,0.00014998,2]
[423268983,1780008642000,-500.0,0.00014999,2]
[423268949,1780008642000,-500.0,0.00014998,2]
[423268954,1780008642000,-500.0,0.00014998,2]
[423268950,1780008642000,-500.0,0.00014998,2]
[423268953,1780008642000,-500.0,0.00014998,2]
[423268961,1780008642000,-203.003435,0.00014999,2]
[423268962,1780008642000,-500.0,0.00014999,2]
[423268968,1780008642000,-500.0,0.00014999,2]
[423268969,1780008642000,-500.0,0.00014999,2]
[423268966,1780008642000,-151.0,0.00014999,2]
[423268971,1780008642000,-500.0,0.00014999,2]
[423268973,1780008642000,-500.0,0.00014999,2]
[423268972,1780008642000,-500.0,0.00014999,2]
[423268977,1780008642000,-500.0,0.00014999,2]
[423268982,1780008642000,-500.0,0.00014999,2]
[423268980,1780008642000,-500.0,0.00014999,2]
[423268963,1780008642000,-399.87378065,0.00014999,2]
[423268974,1780008642000,-500.0,0.00014999,2]
[423268987,1780008642000,-500.0,0.00014999,2]
[423268988,1780008642000,-500.0,0.00014999,2]
[423268975,1780008642000,-500.0,0.00014999,2]
[423268985,1780008642000,-500.0,0.00014999,2]
[423268965,1780008642000,-151.0,0.00014999,2]
[423268964,1780008642000,-151.0,0.00014999,2]
[423268959,1780008642000,-203.003435,0.00014999,2]
[423268960,1780008642000,-203.003435,0.00014999,2]
[423268970,1780008642000,-500.0,0.00014999,2]
[423268967,1780008642000,-500.0,0.00014999,2]
[423269063,1780008643000,-170.297,0.00014999,2]
[423269076,1780008643000,-500.0,0.00014999,2]
[423269074,1780008643000,-500.0,0.00014999,2]
[423269065,1780008643000,-170.297,0.00014999,2]